[Event "ChessKid Cup Div-II 2023"]
[Site "Online"]
[Date "2023.05.26"]
[Round "5.4"]
[White "Mamedyarov, Shakhriyar"]
[Black "Fedoseev, Vladimir"]
[Result "0-1"]
[ECO "E12"]
[WhiteElo "2738"]
[BlackElo "2680"]
[Annotator "TA"]
[PlyCount "98"]
[EventDate "2023.05.21"]
[EventType "k.o."]
[EventCountry "NET"]
[SourceTitle "playchess.com"]
[Source "ChessBase"]
[SourceQuality "1"]
[TimeControl "900+3"]

{[%evp 21,98,17,38,7,40,42,65,0,51,0,0,-3,0,-25,-30,-27,-27,-27,-29,-25,-23,-27,-30,-31,-20,-25,0,-8,0,0,0,0,0,-17,0,-16,-1,-13,-12,-25,-10,-63,-61,-69,-68,-68,-74,-133,-130,-195,-193,-198,-187,-393,-385,-368,-293,-360,-258,-430,-406,-406,-315,-422,-352,-744,-704,-1316,-479,-835,-842,-29959,-29963,-29961,-29961,-29960,-29962,-29979,-29980]} 1. d4 {[%emt 0:00:03] ChessBase II} Nf6 {[%emt 0:00:09]} 2. c4 {[%emt 0:00:03]} e6 {[%emt 0:00:04]} 3. Nf3 {[%emt 0:00:05]} b6 {[%emt 0:00:02]} 4. g3 {[%emt 0:00:23]} Bb7 {[%emt 0:00:07]} 5. Bg2 {[%emt 0:00:01]} Be7 {[%emt 0:00:02]} 6. O-O {[%emt 0:00:01]} O-O {[%emt 0:00:01]} 7. Nc3 {[%emt 0:00:04]} Na6 {[%emt 0:00:10][%cal Bb8a6,Ba6c7,Bc7e6][%mdl 32]} 8. a3 {[%emt 0:00:35]} d5 {[%emt 0:01:20]} 9. Ne5 {[%emt 0:00:12]} c5 {[%emt 0:00:23]} 10. cxd5 {[%emt 0:00:20]} exd5 {[%emt 0:00:19]} 11. dxc5 {[%emt 0:00:16]} bxc5 {[%emt 0:00:15] [#]} 12. Bg5 $146 {[%emt 0:00:12] E12: Queen's Indian: Unusual White 4th moves, 4 a3, 4 Nc3 Bb7 5 a3 and 4 Nc3 Bb7 .} ({Predecessor:} 12. Qb3 Rb8 13. Bf4 Nc7 14. Rfd1 Bd6 15. Qa4 Qe7 16. Nd3 d4 17. Bxb7 Bxf4 18. Bf3 dxc3 19. Qxf4 Ne6 {½-½ Kouatly,B (2440)-Lengyel,L (2420) Bagneux Librairie Saint Germain 1982 (2)}) 12... Nc7 {[%emt 0:00:03]} (12... h6 $5 {[%cal Rh6g5]} 13. Bxf6 Bxf6 $11) 13. Qa4 {[%emt 0:00:45]} Qd6 {[%emt 0:01:13]} 14. Bf4 {[%emt 0:02:35][%cal Oe5g6] White is slightly better.} (14. Nc4 $5 {[%cal Rc4d6]} Qa6 15. Na5 $14) 14... Ne6 {[%emt 0:01:20]} 15. Nc4 {[%emt 0:01:16]} (15. Nxf7 $1 $14 Qb6 16. Ne5) 15... Qa6 $1 $11 {[%emt 0:00:31]} (15... dxc4 $2 16. Bxd6 Bxd6 17. Bxb7 $18) 16. Qxa6 {[%emt 0:02:22]} (16. Ne3 {is interesting.} d4 17. Qxa6 Bxa6 18. Ncd5) 16... Bxa6 {[%emt 0:00:03]} 17. Nxd5 {[%emt 0:00:23]} (17. Bxd5 $5 Nxf4 18. gxf4 $11) 17... Nxd5 {[%emt 0:00:02]} 18. Bxd5 {[%emt 0:00:01]} Nxf4 {[%emt 0:00:01]} 19. gxf4 {[%emt 0:00:01]} Rad8 {[%emt 0:00:01]} 20. Ne3 {[%emt 0:00:04]} Bxe2 {[%emt 0:00:20]} 21. Rfe1 {[%emt 0:00:01]} Bh5 {[%emt 0:00:47]} 22. Rac1 {[%emt 0:00:17][%cal Oe3f5]} g6 {[%emt 0:01:12]} 23. Kg2 {[%emt 0:00:10]} Bd6 {[%emt 0:00:10]} 24. Bf3 {[%emt 0:00:04]} Bxf3+ {[%emt 0:00:17]} 25. Kxf3 {[%emt 0:00:00]} Kg7 {[%emt 0:00:42]} 26. Rcd1 {[%emt 0:00:14]} Bc7 {[%emt 0:00:17]} 27. Nd5 {[%emt 0:00:09]} Bb8 {[%emt 0:00:08]} 28. Nc3 {[%emt 0:00:11]} Rd4 {[%emt 0:00:14]} 29. Rxd4 {[%emt 0:00:43]} cxd4 {[%emt 0:00:01][%mdl 4096] Endgame KRB-KRN} 30. Ne4 {[%emt 0:00:01]} Rd8 {[%emt 0:00:10]} 31. Rh1 {[%emt 0:00:06]} ({White should try} 31. Rd1 $11) 31... Rd5 $15 {[%emt 0:00:16]} 32. Ng3 {[%emt 0:00:15] Wards off Rf5} f5 {[%emt 0:01:03] Black is more active.} 33. Rd1 {[%emt 0:00:05]} d3 {[%emt 0:00:02] Black continues to play with concentration.} 34. Ke3 {[%emt 0:00:19]} (34. Nf1 $142) 34... g5 $1 $17 {[%emt 0:00:05]} 35. Kf3 {[%emt 0:00:17]} (35. fxg5 $17 f4+ {[%mdl 64] Discovered Attack, Double Attack} 36. Ke4 Re5+ 37. Kd4 fxg3 38. hxg3) 35... g4+ $19 {[%emt 0:00:54]} 36. Ke3 {[%emt 0:00:02] [#]} Kg6 $1 {[%emt 0:00:03]} 37. Rxd3 $2 {[%emt 0:00:06] [#]} (37. Nf1) 37... Bxf4+ $1 {[%emt 0:00:03][%mdl 576] Deflection} 38. Ke2 {[%emt 0:00:01] [#]} Rxd3 {[%emt 0:00:55]} 39. Kxd3 {[%emt 0:00:01] KB-KN} h5 {[%emt 0:00:07][%cal Bh7h5,Bh5h4][%mdl 32] Hoping for ...Kg5.} 40. b4 $2 {[%emt 0:00:22]} (40. a4) 40... h4 {[%emt 0:00:04]} 41. Nf1 {[%emt 0:00:02]} Bd6 {[%emt 0:00:29]} 42. Kc4 {[%emt 0:01:10]} Bc7 {[%emt 0:00:17] Threatens to win with ...Bb6.} 43. a4 $2 {[%emt 0:00:06]} (43. Kd3 f4 44. Ke4) 43... Bb6 {[%emt 0:00:06]} 44. f3 {[%emt 0:00:05]} gxf3 {[%emt 0:01:08]} (44... Bc7 $142 45. fxg4 fxg4) 45. a5 {[%emt 0:00:08]} (45. Nd2 $142 Kg5 46. Nxf3+ Kg4 47. Ne5+ Kf4 48. Ng6+ Kg5 49. Ne5) 45... Bg1 {[%emt 0:00:15]} 46. Nd2 {[%emt 0:00:35]} Bxh2 {[%emt 0:00:04] Black mates.} 47. Nxf3 {[%emt 0:00:03]} Bg3 {[%emt 0:00:01]} 48. b5 {[%emt 0:00:20]} h3 {[%emt 0:00:09]} 49. b6 {[%emt 0:00:02]} a6 {[%emt 0:00:07] Weighted Error Value: White=0.85/Black=0.12 (very precise)} 0-1

[Event "ChessKid Cup Div-II 2023"]
[Site "Online"]
[Date "2023.05.26"]
[Round "5.5"]
[White "Fedoseev, Vladimir"]
[Black "Mamedyarov, Shakhriyar"]
[Result "1-0"]
[ECO "C24"]
[WhiteElo "2680"]
[BlackElo "2738"]
[Annotator "TA"]
[PlyCount "81"]
[EventDate "2023.05.21"]
[EventType "k.o."]
[EventCountry "NET"]
[SourceTitle "playchess.com"]
[Source "ChessBase"]
[SourceQuality "1"]
[TimeControl "900+3"]

{[%evp 11,81,32,52,29,40,17,21,0,0,-9,-8,-10,-4,-4,-6,-22,79,-18,0,-16,-10,-175,-166,-240,-236,-285,-285,-285,31,33,68,63,59,58,64,65,86,86,86,71,86,86,86,86,101,103,103,82,130,130,130,130,130,130,130,130,130,130,133,134,158,123,152,160,156,150,144,123,123,123,615,609]} 1. e4 {[%emt 0:00:08]} e5 {[%emt 0:04:10]} 2. Nf3 {[%emt 0:00:05]} Nc6 {[%emt 0:00:03]} 3. Bc4 {[%emt 0:00:03]} Nf6 {[%emt 0:00:05]} 4. d3 {[%emt 0:00:08][%cal Bd2d3,Bd3d4][%mdl 32]} d5 {[%emt 0:00:05]} 5. exd5 {[%emt 0:00:04]} Nxd5 {[%emt 0:00:04]} 6. O-O {[%emt 0:00:09]} Nb6 {[%emt 0:00:04]} 7. Bb5 {[%emt 0:00:06] C24: Bishop's Opening: 2...Nf6.} Bd6 {[%emt 0:00:04]} 8. d4 $5 {[%emt 0:00:21][%mdl 4] Exploring less charted territory.} e4 {[%emt 0:01:12]} 9. Re1 {[%emt 0:00:11] The position is equal.} f5 {[%emt 0:00:05]} 10. Bg5 {[%emt 0:00:28]} Qd7 {[%emt 0:00:30]} 11. c4 {[%emt 0:01:44][%cal Bc2c4,Bc4c5][%mdl 32] Hoping for c5.} O-O {[%emt 0:00:29] And now ...h6 would win.} 12. c5 {[%emt 0:00:06]} exf3 {[%emt 0:00:06] [#]} 13. cxb6 $146 {[%emt 0:00:05]} ({Predecessor:} 13. cxd6 Qxd6 14. d5 a6 15. dxc6 Qxd1 16. Rxd1 axb5 17. Rd8 bxc6 18. gxf3 Be6 19. Rxa8 Rxa8 {0-1 Gasper,J (1919)-Georg,H (2153) Unna op 2016 (5)}) 13... Qf7 {[%emt 0:00:32] [#]} (13... axb6 14. d5 $16) (13... f4 $11 {keeps the balance.} 14. Qxf3 (14. gxf3 $2 axb6 15. Kh1 Ra5 $17) 14... axb6) 14. Bxc6 {[%emt 0:00:28]} (14. Nd2 $1 $16 {Threatens to win with Bc4.} Na5 15. Nxf3 (15. gxf3 $2 {too greedy.} a6 $19) (15. Qxf3 axb6 16. Bf4 Be6 $11)) 14... bxc6 $11 {[%emt 0:00:39]} 15. Qxf3 {[%emt 0:00:08]} axb6 {[%emt 0:00:31] White must now prevent ...f4.} 16. Nc3 $2 {[%emt 0:00:06] [#]} (16. Bf4 $1 $11) 16... f4 $1 $19 {[%emt 0:00:39]} 17. Qxc6 {[%emt 0:01:06]} (17. Ne4 {is a better defense.} Bb4 18. Rec1) 17... Bd7 {[%emt 0:00:05]} 18. Qd5 {[%emt 0:00:33]} Qxd5 {[%emt 0:01:04][%mdl 64] Remove Defender} 19. Nxd5 {[%emt 0:00:06]} Rf7 {[%emt 0:00:04]} (19... Ra5 $19 20. Be7 (20. Ne7+ $2 Kf7 $19) 20... Rxd5 21. Bxf8 Kxf8) 20. Be7 $14 {[%emt 0:00:29]} Bc6 {[%emt 0:00:05]} 21. Bxd6 {[%emt 0:00:08]} Bxd5 {[%emt 0:00:04]} 22. Bb4 {[%emt 0:00:31]} h6 {[%emt 0:00:19][%cal Of4f3]} 23. a3 {[%emt 0:00:08]} b5 {[%emt 0:00:04]} 24. Re5 {[%emt 0:00:20]} c6 {[%emt 0:00:04]} 25. f3 {[%emt 0:00:04]} Kh7 {[%emt 0:00:06]} 26. h4 {[%emt 0:00:09]} Rg8 {[%emt 0:00:10]} 27. Kf2 {[%emt 0:00:14]} g5 {[%emt 0:00:04]} 28. hxg5 {[%emt 0:00:05]} Rxg5 {[%emt 0:00:03]} 29. Rh1 {[%emt 0:00:12]} Kg6 {[%emt 0:00:14]} ({Better is} 29... Rxe5 30. dxe5 Kg6) 30. Re8 $16 {[%emt 0:00:23]} Rg7 {[%emt 0:00:27][%cal Og5g2]} 31. Rf8 {[%emt 0:00:20]} Rf7 {[%emt 0:00:25]} 32. Rh8 {[%emt 0:00:17]} h5 {[%emt 0:00:07]} 33. Rh4 {[%emt 0:00:16]} Rgf5 {[%emt 0:00:04]} 34. Bd6 {[%emt 0:00:12]} Bc4 {[%emt 0:00:10]} 35. Rg8+ {[%emt 0:00:23]} Kh7 {[%emt 0:00:05]} 36. Re8 {[%emt 0:00:14]} Bd5 {[%emt 0:00:10]} 37. Be5 {[%emt 0:00:22] White is more active.} Kg6 {[%emt 0:00:03]} 38. Rg8+ {[%emt 0:00:17]} Kh7 {[%emt 0:00:04]} 39. Rh8+ {[%emt 0:00:04]} Kg6 {[%emt 0:00:04]} 40. Rh3 {[%emt 0:00:35]} c5 $2 {[%emt 0:00:07][%mdl 8192]} 41. g4 {[%emt 0:00:09] Quite a comeback for White.   Weighted Error Value: White=0.16 (very precise) /Black=0.42} 1-0

[Event "ChessKid Cup Div-II 2023"]
[Site "Online"]
[Date "2023.05.23"]
[Round "51.1"]
[White "Andreikin, Dmitry"]
[Black "Bharath Subramaniyam H"]
[Result "1/2-1/2"]
[ECO "D12"]
[WhiteElo "2729"]
[BlackElo "2517"]
[Annotator "TA"]
[PlyCount "127"]
[EventDate "2023.05.21"]
[EventType "k.o."]
[EventCountry "NET"]
[SourceTitle "playchess.com"]
[Source "ChessBase"]
[SourceQuality "1"]
[TimeControl "900+3"]

{[%evp 15,126,32,20,39,64,27,39,15,32,0,0,0,0,-25,8,0,33,35,39,-48,-50,-71,20,24,40,1,50,43,43,0,39,47,60,63,75,81,94,89,89,93,75,81,235,102,104,106,112,72,77,12,127,8,8,0,0,0,0,0,0,0,0,0,11,11,14,0,0,0,0,0,0,0,0,0,0,0,0,0,0,0,0,0,0,0,0,0,0,0,0,0,0,0,0,0,0,0,0,0,0,0,0,0,0,0,0,0,0,0,0,0,0,0,0]} 1. d4 {[%emt 0:00:05]} d5 {[%emt 0:00:06]} 2. c4 {[%emt 0:00:03]} c6 {[%emt 0:00:01]} 3. Nf3 {[%emt 0:00:03]} Nf6 {[%emt 0:00:01]} 4. e3 {[%emt 0:00:03]} Bf5 {[%emt 0:00:02]} 5. Nc3 {[%emt 0:00:01]} e6 {[%emt 0:00:00]} 6. Nh4 {[%emt 0:00:01]} Be4 {[%emt 0:00:01]} 7. f3 {[%emt 0:00:02]} Bg6 {[%emt 0:00:00]} 8. Qb3 {[%emt 0:00:01]} Qc7 {[%emt 0:00:01]} 9. Bd2 {[%emt 0:00:04] D12: Slav Defence: 3 Nf3 Nf6 4 e3 Bf5.} a5 {[%emt 0:00:07][%cal Oa5a4]} 10. Rc1 {[%emt 0:00:28]} Be7 {[%emt 0:00:12] [#]} 11. Be2 $146 {[%emt 0:01:27] White is slightly better.} ({Predecessor:} 11. cxd5 exd5 12. g3 Bd8 13. Nb5 Qe7 14. Nd6+ Qxd6 15. Qxb7 Nfd7 16. Nxg6 hxg6 17. Qxa8 Rxh2 18. Rxh2 Qxg3+ {1-0 Efimenko,Z (2599)-Lokander,M (2449) Bundesliga 2223 2022 (8.4)}) 11... Nbd7 {[%emt 0:00:54]} 12. cxd5 {[%emt 0:00:51]} (12. g3 $5 {[%cal Rc4d5]}) 12... Nxd5 {[%emt 0:00:22]} 13. Nxg6 {[%emt 0:00:33]} hxg6 {[%emt 0:00:00]} 14. f4 {[%emt 0:00:02]} (14. g3 $5) 14... Bh4+ {[%emt 0:01:31]} 15. Kf1 {[%emt 0:00:27]} Nxc3 {[%emt 0:01:11]} 16. bxc3 {[%emt 0:00:04]} g5 {[%emt 0:01:03]} 17. Bf3 {[%emt 0:00:26]} (17. fxg5 $14 Bxg5 18. g3) 17... gxf4 $15 {[%emt 0:00:19]} 18. exf4 {[%emt 0:00:00] [#]} O-O {[%emt 0:00:13]} (18... Bg3 $1 $17) 19. g3 $11 {[%emt 0:00:28]} Be7 {[%emt 0:00:47]} 20. Kg2 {[%emt 0:00:40]} a4 {[%emt 0:00:46]} (20... b5 $11) 21. Qb1 $36 {[%emt 0:00:07][%mdl 2048] White has some pressure.} Nf6 {[%emt 0:01:49]} 22. Rhe1 {[%emt 0:00:06]} (22. f5 $5 {[%cal Rf5e6]}) 22... Bd6 {[%emt 0:00:40]} 23. c4 {[%emt 0:00:29]} Rfd8 {[%emt 0:00:16]} 24. Bc3 {[%emt 0:00:04][%cal Od4d5]} Be7 {[%emt 0:00:51]} 25. f5 {[%emt 0:00:26]} exf5 {[%emt 0:00:08]} 26. Qxf5 {[%emt 0:00:00]} Qd7 {[%emt 0:00:18]} 27. Qxd7 {[%emt 0:01:50]} Rxd7 {[%emt 0:00:03]} 28. Rb1 {[%emt 0:00:00]} Ne8 $2 {[%emt 0:01:34]} (28... Kf8 $16 {was called for.}) 29. d5 {[%emt 0:00:32]} (29. Bg4 $18 {is the precise move to win.} Rc7 30. Bd2) 29... cxd5 $16 {[%emt 0:01:00]} 30. Bxd5 {[%emt 0:00:07] This pair of bishops is nice.} Bf6 {[%emt 0:00:09]} 31. Bb4 {[%emt 0:02:37] White has more active pieces.} ({But not} 31. Bxb7 $6 Rxb7 32. Rxb7 Bxc3 $11) ({Of course not} 31. Rxb7 $6 Rxd5 32. cxd5 Bxc3 $11) 31... Rc8 {[%emt 0:00:06]} 32. Ba3 {[%emt 0:00:05]} (32. Bc5 $16) 32... Nc7 {[%emt 0:00:07]} (32... b5 $1 $11) 33. Rxb7 {[%emt 0:00:11]} ({White should try} 33. Bxb7 $16 Rd2+ 34. Kf1) 33... Rcd8 $11 {[%emt 0:00:01] Black is weak on the light squares. The position is equal.} 34. Bb4 {[%emt 0:02:22] [#] Bc6 is the strong threat.} ({Avoid the trap} 34. Rd1 $2 Nxd5 35. Rxd7 Ne3+ 36. Kf3 Nxd1 $19) 34... Nxd5 {[%emt 0:00:14]} 35. Rxd7 {[%emt 0:00:00]} Rxd7 {[%emt 0:00:00]} 36. cxd5 {[%emt 0:00:01]} Rxd5 {[%emt 0:00:00][%mdl 4096] Endgame KRB-KRB} 37. Re8+ {[%emt 0:00:01]} Kh7 {[%emt 0:00:03]} 38. Ra8 {[%emt 0:00:03][%cal Oa2a3]} Rd4 {[%emt 0:00:23]} 39. a3 {[%emt 0:00:01]} Rc4 {[%emt 0:00:29]} 40. Kf3 {[%emt 0:00:05]} Bb2 {[%emt 0:00:17][%cal Ob2a3]} 41. Re8 {[%emt 0:00:47] Wards off Bxa3} Bc3 {[%emt 0:00:14]} 42. Bxc3 {[%emt 0:00:17]} Rxc3+ {[%emt 0:00:00] KR-KR} 43. Re3 $1 {[%emt 0:00:01]} Rc2 {[%emt 0:00:07]} 44. h4 {[%emt 0:00:02]} Kg6 {[%emt 0:00:07]} 45. Kf4 {[%emt 0:00:14]} Rc4+ {[%emt 0:00:15]} 46. Re4 {[%emt 0:00:08]} Rxe4+ {[%emt 0:00:04]} 47. Kxe4 {[%emt 0:00:00] K3P-K3P} Kh5 {[%emt 0:00:06] ( -> ...Kg4)} 48. Kf5 {[%emt 0:00:15]} g6+ {[%emt 0:00:04]} 49. Kf6 {[%emt 0:00:17]} Kg4 {[%emt 0:00:02]} 50. Kxf7 {[%emt 0:00:01]} Kxg3 {[%emt 0:00:00]} 51. Kxg6 {[%emt 0:00:01] White wants to mate with h5.} Kxh4 {[%emt 0:00:00] KP-KP} 52. Kf5 {[%emt 0:00:01]} Kh5 {[%emt 0:00:01]} 53. Ke4 {[%emt 0:00:01]} Kg6 {[%emt 0:00:00]} 54. Kd4 {[%emt 0:00:01]} Kf7 {[%emt 0:00:00]} 55. Kc4 {[%emt 0:00:00]} Ke8 {[%emt 0:00:01]} 56. Kb4 {[%emt 0:00:00]} Kd7 {[%emt 0:00:00]} 57. Kxa4 {[%emt 0:00:00] KP-K} Kc6 {[%emt 0:00:00]} 58. Ka5 {[%emt 0:00:00]} Kb7 {[%emt 0:00:00]} 59. Kb5 {[%emt 0:00:01]} Ka8 {[%emt 0:00:01]} 60. a4 $1 {[%emt 0:00:00][%cal Ba3a4,Ba4a5,Ba5a6,Ba6a7][%mdl 32]} Kb8 {[%emt 0:00:01]} 61. a5 $1 {[%emt 0:00:00]} Ka8 {[%emt 0:00:00]} 62. a6 $1 {[%emt 0:00:00]} Kb8 {[%emt 0:00:00]} 63. Kb6 $1 {[%emt 0:00:00]} Ka8 {[%emt 0:00:01]} 64. a7 {[%emt 0:00:00] Weighted Error Value: White=0.18 (very precise) /Black=0.15 (very precise)} 1/2-1/2

[Event "ChessKid Cup Div-II 2023"]
[Site "Online"]
[Date "2023.05.23"]
[Round "51.1"]
[White "Kravtsiv, Martyn"]
[Black "Mamedyarov, Shakhriyar"]
[Result "0-1"]
[ECO "C47"]
[WhiteElo "2598"]
[BlackElo "2738"]
[Annotator "TA"]
[PlyCount "96"]
[EventDate "2023.05.21"]
[EventType "k.o."]
[EventCountry "NET"]
[SourceTitle "playchess.com"]
[Source "ChessBase"]
[SourceQuality "1"]
[TimeControl "900+3"]

{[%evp 18,96,50,54,58,37,91,77,75,73,77,82,82,74,75,73,74,75,77,65,75,68,73,0,0,0,0,23,39,13,38,26,17,34,68,0,0,0,0,8,20,0,0,0,0,0,0,-6,-5,-5,-2,-22,-22,-50,0,0,0,0,0,0,0,-2682,-2625,-1670,-83,-1573,-1315,-4133,-2314,-80,-80,-4578,-1719,-4578,-4578,-4133,0,0,0,-29973,-29946]} 1. e4 {[%emt 0:00:10]} e5 {[%emt 0:00:05]} 2. Nf3 {[%emt 0:00:03]} Nf6 {[%emt 0:00:04]} 3. Nc3 {[%emt 0:00:43]} Nc6 {[%emt 0:00:02]} 4. d4 {[%emt 0:00:13]} Bb4 {[%emt 0:00:38]} 5. Nxe5 {[%emt 0:00:11]} Qe7 {[%emt 0:00:27]} 6. Qd3 {[%emt 0:01:09]} Nxe5 {[%emt 0:00:47]} 7. dxe5 {[%emt 0:00:04]} Qxe5 {[%emt 0:00:00]} 8. Bd2 {[%emt 0:00:03]} O-O {[%emt 0:00:10]} 9. O-O-O {[%emt 0:00:30][%cal Ba1d1,Bd1d2,Bd2d5][%mdl 32]} Bxc3 {[%emt 0:00:35]} 10. Bxc3 {[%emt 0:00:04]} Qf4+ {[%emt 0:00:01] C47: Scotch Four Knights and Four Knights with 4 g3.} 11. Rd2 $1 {[%emt 0:00:36]} d5 {[%emt 0:01:32]} (11... Re8 $14) 12. Qf3 {[%emt 0:04:29]} Qxe4 {[%emt 0:01:30] White is better.} 13. Bxf6 {[%emt 0:00:04]} Qxf3 {[%emt 0:00:11]} 14. gxf3 {[%emt 0:00:00]} gxf6 {[%emt 0:00:00] [#]} 15. Rxd5 $146 {[%emt 0:00:07]} ({Predecessor:} 15. Rg1+ Kh8 16. Rxd5 Be6 17. Rh5 Rg8 18. Rg3 Rxg3 19. hxg3 Kg7 20. Bd3 h6 21. b3 {½-½ Csiki,E (2341)-Pranav,V (2366) Paracin Orbis GM 3rd 2021 (9)}) 15... Kh8 {[%emt 0:00:28]} 16. Bd3 {[%emt 0:01:06]} Rg8 {[%emt 0:00:06]} 17. Rh5 {[%emt 0:00:16][%csl Gd3][%cal Rh5h7]} Rg7 {[%emt 0:00:02]} 18. Rh6 {[%emt 0:00:01]} f5 {[%emt 0:02:26]} 19. Rh5 {[%emt 0:00:12]} Rg2 {[%emt 0:01:13]} 20. Bxf5 {[%emt 0:00:04]} ({White should play} 20. Re1 $16) 20... Bxf5 $11 {[%emt 0:00:08]} 21. Rxf5 $16 {[%emt 0:00:00][%mdl 4096] Endgame KRR-KRR} Kg7 {[%emt 0:00:35]} 22. Rd1 {[%emt 0:00:34]} Kg6 {[%emt 0:00:41]} 23. Rc5 {[%emt 0:02:43]} c6 {[%emt 0:00:13]} 24. Rd6+ {[%emt 0:01:12]} f6 {[%emt 0:00:07]} 25. h4 {[%emt 0:00:07] h5+ would be deadly.} Re8 {[%emt 0:00:36]} 26. h5+ {[%emt 0:01:06]} (26. Rd7 $14) 26... Kf7 $11 {[%emt 0:00:06]} 27. b4 {[%emt 0:00:14]} Re1+ {[%emt 0:01:00]} 28. Kb2 {[%emt 0:00:02]} Ke7 {[%emt 0:00:01]} 29. Rd2 {[%emt 0:00:08]} (29. Rd3 $5 {[%cal Rb4b5]}) 29... Rg5 {[%emt 0:00:39]} 30. Rxg5 {[%emt 0:00:02]} fxg5 {[%emt 0:00:01] KR-KR} 31. Rd4 {[%emt 0:00:01] Strongly threatening Re4+.} Rh1 {[%emt 0:00:01]} 32. f4 {[%emt 0:00:15]} Rxh5 {[%emt 0:00:30] And now ...g4 would win.} 33. fxg5 {[%emt 0:00:01]} Rxg5 {[%emt 0:00:00]} 34. Kc3 {[%emt 0:00:02]} h5 {[%emt 0:00:02]} 35. a4 {[%emt 0:00:02]} Kf6 {[%emt 0:00:40]} (35... c5 $15 36. Re4+ Kf6) 36. Rd6+ {[%emt 0:00:08]} Kf5 {[%emt 0:00:26] White must now prevent ...h4.} 37. Rd7 {[%emt 0:00:01]} h4 {[%emt 0:00:01]} 38. Rxb7 {[%emt 0:00:02]} h3 {[%emt 0:00:11]} (38... Rh5 $5 39. b5 $8 (39. Rxa7 $2 h3 $19) 39... cxb5 40. Rxb5+ Kg6 $11) 39. Rxa7 $2 {[%emt 0:00:05][%mdl 8192]} (39. Rh7 $11 Kg4 40. f3+ Kg3 41. Rxa7) 39... Kg6 $19 {[%emt 0:00:05]} 40. Ra8 {[%emt 0:00:08]} Kh7 $1 {[%emt 0:00:17] ( -> ...h2)} 41. Ra7+ $2 {[%emt 0:00:02][%mdl 8192] [#]} (41. Re8 $17 h2 42. Re7+ (42. Re1 $2 Rg1 $19) 42... Rg7 43. Re1) 41... Rg7 $1 {[%emt 0:00:08]} 42. Ra5 {[%emt 0:00:00] [#]} Kh6 $1 {[%emt 0:00:05]} 43. Re5 {[%emt 0:00:05]} h2 {[%emt 0:00:02][%mdl 1024] Black has strong compensation.} 44. Re1 {[%emt 0:00:01][%mdl 8192]} (44. Re6+ $17 Kh7 45. Re1) 44... Rg1 {[%emt 0:00:01]} 45. Re8 {[%emt 0:00:01]} Kh7 {[%emt 0:00:03]} ({Weaker is} 45... h1=B 46. a5 $16) (45... h1=Q $2 {perishes.} 46. Rh8+ Kg6 47. Rxh1 Rxh1 48. Kd4 $19) (45... h1=R 46. Rc8 $17) 46. Re7+ {[%emt 0:00:01]} Rg7 $2 {[%emt 0:00:04]} ({Better is} 46... Kh8 $19 47. Re8+ Kg7 48. Re7+ Kg8 49. Re8+ Kh7 50. Re7+ Kg6 51. Re6+ Kf7) 47. Re1 $11 {[%emt 0:00:00] Hoping for Rh1.} Rg1 {[%emt 0:00:00] Dodges Rh1} 48. Re6 {[%emt 0:00:01][%mdl 8192]} (48. Re7+ $11 Kg6 49. Re6+ Kg7 50. Re7+ Kg8 51. Re8+ Kf7 52. Rh8) 48... h1=Q {[%emt 0:00:04] Weighted Error Value: White=0.70/Black=0.15 (very precise)} ({Not} 48... h1=B 49. a5 $16) 0-1